lending/lending_fUSD_20241211
["ID","MTS","AMOUNT","RATE_DAILY","PERIOD"]
[345025064,1733937049060,-500.0,0.00010958,2]
[345025065,1733937049070,-500.0,0.00010958,2]
[345025066,1733937049080,-500.62219809,0.00010958,2]
[345025067,1733937049090,-500.0,0.00010958,2]
[345025068,1733937049101,-500.0,0.00010958,2]
[345025069,1733937049110,-500.0,0.00010958,2]
[345025070,1733937049120,-547.55,0.00010958,2]
[345025071,1733937049131,-500.0,0.00010958,2]
[345025072,1733937049140,-500.0,0.00010958,2]
[345025073,1733937049150,-500.0,0.00010958,2]
[345025074,1733937049160,-500.0,0.00010958,2]
[345025075,1733937049169,-500.0,0.00010958,2]
[345025076,1733937049179,-500.0,0.00010958,2]
[345025077,1733937049188,-528.82,0.00010958,2]
[345025078,1733937049198,-552.08,0.00010958,2]
[345025079,1733937049209,-500.0,0.00010958,2]
[345025080,1733937049218,-500.0,0.00010958,2]
[345025081,1733937049229,-500.0,0.00010958,2]
[345025082,1733937049244,-500.0,0.00010958,2]
[345025083,1733937049260,-500.0,0.00010958,2]
[345025084,1733937049270,-500.0,0.00010958,2]
[345025085,1733937049280,-502.72308551,0.00010958,2]
[345025086,1733937049291,-500.0,0.00010958,2]
[345025087,1733937049303,-500.0,0.00010958,2]
[345025088,1733937049313,-526.00805939,0.00010958,2]
[345025089,1733937049324,-501.07689622,0.00010958,2]
[345025090,1733937049335,-500.0,0.00010958,2]
[345025091,1733937049345,-500.0,0.00010958,2]
[345025092,1733937049356,-500.0,0.00010958,2]
[345025093,1733937049365,-500.0,0.00010958,2]
[345025094,1733937049377,-500.0,0.00010958,2]
[345025095,1733937049390,-500.0,0.00010958,2]
[345025096,1733937049400,-500.0,0.00010958,2]
[345025097,1733937049411,-500.0,0.00010958,2]
[345025098,1733937049420,-500.0,0.00010958,2]
[345025099,1733937049430,-500.0,0.00010958,2]
[345025100,1733937049440,-500.0,0.00010958,2]
[345025101,1733937049450,-500.0,0.00010958,2]
[345025102,1733937049460,-500.0,0.00010958,2]
[345025103,1733937049469,-500.0,0.00010958,2]
[345025104,1733937049479,-500.0,0.00010958,2]
[345025105,1733937049488,-500.0,0.00010958,2]
[345025106,1733937049498,-500.0,0.00010958,2]
[345025107,1733937049507,-500.0,0.00010958,2]
[345025108,1733937049516,-500.0,0.00010958,2]
[345025109,1733937049526,-500.0,0.00010958,2]
[345025110,1733937049535,-500.0,0.00010958,2]
[345025111,1733937049545,-500.0,0.00010958,2]
[345025112,1733937049555,-500.0,0.00010958,2]
[345025113,1733937049565,-500.0,0.00010958,2]
[345025114,1733937049575,-500.0,0.00010958,2]
[345025115,1733937049584,-500.0,0.00010958,2]
[345025116,1733937049593,-500.0,0.00010958,2]
[345025117,1733937049603,-500.0,0.00010958,2]
[345025118,1733937049612,-500.0,0.00010958,2]
[345025119,1733937049621,-500.0,0.00010958,2]
[345025120,1733937049631,-500.0,0.00010958,2]
[345025121,1733937049642,-540.71148595,0.00010958,2]
[345025122,1733937049651,-500.0,0.00010958,2]
[345025123,1733937049660,-500.71243976,0.00010958,2]
[345025124,1733937049670,-500.0,0.00010958,2]
[345025125,1733937049683,-500.0,0.00010958,2]
[345025126,1733937049692,-500.0,0.00010958,2]
[345025127,1733937049704,-500.0,0.00010958,2]
[345025128,1733937049713,-500.0,0.00010958,2]
[345025129,1733937049722,-500.0,0.00010958,2]
[345025130,1733937049740,-500.0,0.00010958,2]
[345025131,1733937049749,-500.0,0.00010958,2]
[345025132,1733937049758,-500.0,0.00010958,2]
[345025133,1733937049768,-500.0,0.00010958,2]
[345025134,1733937049777,-502.2028245,0.00010958,2]
[345025135,1733937049786,-500.0,0.00010958,2]
[345025136,1733937049796,-500.0,0.00010958,2]
[345025137,1733937049805,-500.0,0.00010958,2]
[345025138,1733937049815,-500.0,0.00010958,2]
[345025139,1733937049824,-500.0,0.00010958,2]
[345025140,1733937049834,-500.0,0.00010958,2]
[345025141,1733937049843,-500.0,0.00010958,2]
[345025142,1733937049852,-500.0,0.00010958,2]
[345025143,1733937049861,-500.0,0.00010958,2]
[345025144,1733937049870,-500.0,0.00010958,2]
[345025145,1733937049879,-500.0,0.00010958,2]
[345025146,1733937049888,-500.0,0.00010958,2]
[345025147,1733937049898,-500.0,0.00010958,2]
[345025148,1733937049907,-500.0,0.00010958,2]
[345025149,1733937049916,-150.1846996,0.00010958,2]
[345025150,1733937049939,-349.8153004,0.00010958,2]
[345025151,1733937049951,-500.0,0.00010958,2]
[345025152,1733937049962,-500.0,0.00010958,2]
[345025153,1733937049971,-500.0,0.00010958,2]
[345025154,1733937049983,-500.0,0.00010958,2]
[345025155,1733937049993,-500.0,0.00010958,2]
[345025156,1733937050005,-500.0,0.00010958,2]
[345025157,1733937050015,-502.25957178,0.00010958,2]
[345025158,1733937050024,-500.0,0.00010958,2]
[345025159,1733937050034,-500.0,0.00010958,2]
[345025160,1733937050044,-500.0,0.00010958,2]
[345025161,1733937050054,-501.0275287,0.00010958,2]
[345025162,1733937050064,-500.0,0.00010958,2]
[345025163,1733937050075,-500.0,0.00010958,2]
[345025164,1733937050085,-500.0,0.00010958,2]
[345025165,1733937050095,-39.12509912,0.00010958,2]
[345025166,1733937050106,-460.87490088,0.00010958,2]
[345025167,1733937050116,-500.0,0.00010958,2]
[345025168,1733937050125,-500.0,0.00010958,2]
[345025169,1733937050134,-500.0,0.00010958,2]
[345025170,1733937050144,-500.0,0.00010958,2]
[345025171,1733937050153,-501.34032128,0.00010958,2]
[345025172,1733937050162,-500.0,0.00010958,2]
[345025173,1733937050172,-502.71561581,0.00010958,2]
[345025174,1733937050183,-500.74,0.00010958,2]
[345025175,1733937050192,-500.0,0.00010958,2]
[345025176,1733937050202,-501.37786379,0.00010958,2]
[345025177,1733937050211,-500.0,0.00010958,2]
[345025178,1733937050220,-332.95129824,0.00010958,2]
[345025179,1733937050245,-167.04870176,0.00010958,2]
[345025180,1733937050255,-500.0,0.00010958,2]
[345025181,1733937050268,-500.0,0.00010958,2]
[345025182,1733937050278,-500.0,0.00010958,2]
[345025183,1733937050290,-500.0,0.00010958,2]
[345025184,1733937050299,-500.0,0.00010958,2]
[345025185,1733937050308,-500.0,0.00010958,2]
[345025186,1733937050317,-500.0,0.00010958,2]
[345025187,1733937050327,-3225.44,0.00010958,2]
[345025188,1733937050336,-500.0,0.00010958,2]
[345025189,1733937050529,-500.0,0.00010958,2]
[345025190,1733937050539,-500.0,0.00010958,2]
[345025191,1733937050548,-500.0,0.00010958,2]
[345025192,1733937050558,-500.0,0.00010958,2]
[345025193,1733937050567,-508.00592899,0.00010958,2]
[345025194,1733937050577,-500.0,0.00010958,2]
[345025195,1733937050586,-501.75403176,0.00010958,2]
[345025196,1733937050595,-500.0,0.00010958,2]
[345025197,1733937050605,-500.0,0.00010958,2]
[345025198,1733937050614,-500.0,0.00010958,2]
[345025199,1733937050623,-500.0,0.00010958,2]
[345025200,1733937050631,-500.0,0.00010958,2]
[345025201,1733937050641,-500.0,0.00010958,2]
[345025202,1733937050650,-1352.64,0.00010958,2]
[345025203,1733937050660,-500.0,0.00010958,2]
[345025204,1733937050670,-500.0,0.00010958,2]
[345025205,1733937050679,-760.29,0.00010958,2]
[345025206,1733937050689,-500.0,0.00010958,2]
[345025207,1733937050699,-500.0,0.00010958,2]
[345025208,1733937050708,-500.0,0.00010958,2]
[345025209,1733937050718,-500.0,0.00010958,2]
[345025210,1733937050727,-500.0,0.00010958,2]
[345025211,1733937050741,-500.0,0.00010958,2]
[345025212,1733937050754,-1084.36,0.00010958,2]
[345025213,1733937050763,-500.0,0.00010958,2]
[345025214,1733937050773,-156.824474,0.00010958,2]
[345025215,1733937050782,-156.824474,0.00010958,2]
[345025216,1733937050793,-156.824474,0.00010958,2]
[345025217,1733937050803,-156.824474,0.00010958,2]
[345025218,1733937050812,-156.824474,0.00010958,2]
[345025219,1733937050822,-156.824474,0.00010958,2]
[345025220,1733937050831,-156.824474,0.00010958,2]
[345025221,1733937050841,-156.824474,0.00010958,2]
[345025222,1733937050851,-156.824474,0.00010958,2]
[345025223,1733937050861,-695.49,0.00010958,2]
[345025224,1733937050870,-500.0,0.00010958,2]
[345025225,1733937050881,-500.0,0.00010958,2]
[345025226,1733937050891,-637.53,0.00010958,2]
[345025227,1733937050900,-501.53696903,0.00010958,2]
[345025228,1733937050909,-500.0,0.00010958,2]
[345025229,1733937050919,-500.0,0.00010958,2]
[345025230,1733937050929,-500.0,0.00010958,2]
[345025231,1733937050938,-500.0,0.00010958,2]
[345025232,1733937050948,-500.0,0.00010958,2]
[345025233,1733937050958,-500.0,0.00010958,2]
[345025234,1733937050968,-500.0,0.00010958,2]
[345025235,1733937050978,-500.0,0.00010958,2]
[345025236,1733937050991,-500.0,0.00010958,2]
[345025237,1733937051001,-154.941874,0.00010958,2]
[345025238,1733937051011,-154.941874,0.00010958,2]
[345025239,1733937051021,-154.941874,0.00010958,2]
[345025240,1733937051031,-154.941874,0.00010958,2]
[345025241,1733937051041,-154.941874,0.00010958,2]
[345025242,1733937051051,-154.941874,0.00010958,2]
[345025243,1733937051061,-154.941874,0.00010958,2]
[345025244,1733937051071,-287.681784,0.00010958,2]
[345025245,1733937051081,-154.941874,0.00010958,2]
[345025246,1733937051091,-287.681784,0.00010958,2]
[345025247,1733937051100,-287.681784,0.00010958,2]
[345025248,1733937051110,-500.0,0.00010958,2]
[345025249,1733937051119,-287.681784,0.00010958,2]
[345025250,1733937051129,-287.681784,0.00010958,2]
[345025251,1733937051139,-287.681784,0.00010958,2]
[345025252,1733937051148,-287.681784,0.00010958,2]
[345025253,1733937051158,-287.681784,0.00010958,2]
[345025254,1733937051167,-287.681784,0.00010958,2]
[345025255,1733937051177,-500.0,0.00010958,2]
[345025256,1733937051187,-447.01,0.00010958,2]
[345025257,1733937051196,-500.0,0.00010958,2]
[345025258,1733937051205,-500.0,0.00010958,2]
[345025259,1733937051215,-500.0,0.00010958,2]
[345025260,1733937051224,-500.0,0.00010958,2]
[345025261,1733937051235,-500.0,0.00010958,2]
[345025262,1733937051244,-500.0,0.00010958,2]
[345025263,1733937051253,-907.74,0.00010958,2]
[345025264,1733937051263,-500.0,0.00010958,2]
[345025265,1733937051272,-500.0,0.00010958,2]
[345025266,1733937051281,-500.0,0.00010958,2]
[345025267,1733937051290,-500.0,0.00010958,2]
[345025268,1733937051303,-500.0,0.00010958,2]
[345025269,1733937051312,-500.0,0.00010958,2]
[345025270,1733937051321,-543.69,0.00010958,2]
[345025271,1733937051330,-500.0,0.00010958,2]
[345025272,1733937051340,-330.28,0.00010958,2]
[345025273,1733937051349,-508.77,0.00010958,2]
[345025274,1733937051358,-500.0,0.00010958,2]
[345025275,1733937051368,-150.0,0.00010959,2]
[345025276,1733937051381,-200.0,0.00010962,2]
[345025277,1733937051390,-152.83936699,0.00010965,2]
[345025278,1733937051399,-2274.015,0.00010978,2]
[345025279,1733937051409,-174.663,0.00010978,2]
[345025280,1733937051418,-152.83936699,0.00010982,2]
[345025281,1733937051428,-500.0,0.00010999,2]
[345025282,1733937051437,-500.0,0.00010999,2]
[345025283,1733937051446,-500.0,0.00010999,2]
[345025284,1733937051455,-500.0,0.00010999,2]
[345025285,1733937051466,-500.0,0.00010999,2]
[345025286,1733937051475,-423.81,0.00010999,2]
[345025287,1733937051487,-907.74,0.00010999,2]
[345025288,1733937051496,-500.0,0.00010999,2]
[345025289,1733937051505,-51250.16653772,0.00011,2]
[345025290,1733937051525,-981.3015826,0.00011,2]
[345025291,1733937051547,-500.0,0.00011,2]
[345025292,1733937075329,2800.0,8.438e-05,2]
[345025293,1733937094514,1100.0,8.438e-05,2]
[345025295,1733937758186,250.0,0.0002,120]
[345025296,1733937830004,1064.95,8.219e-05,2]
[345025315,1733938231844,-412.84,9.76e-05,2]
[345025316,1733938231855,-4997.39184474,9.808e-05,2]
[345025317,1733938231865,-2800.0,9.808e-05,2]
[345025318,1733938231875,-1100.0,9.808e-05,2]
[345025319,1733938231885,-308.88,9.821e-05,2]
[345025320,1733938231894,-200.0,9.849e-05,2]
[345025321,1733938231903,-676.69,9.863e-05,2]
[345025322,1733938231912,-150.0,9.869e-05,2]
[345025323,1733938231922,-300.0,9.869e-05,2]
[345025324,1733938231931,-18910.89770764,9.87e-05,2]
[345025325,1733938231945,-156366.21701534,9.87e-05,2]
[345025326,1733938231954,-250.0,9.884e-05,2]
[345025327,1733938231964,-1000.0,9.926e-05,2]
[345025328,1733938231973,-250.0,9.97e-05,2]
[345025329,1733938231982,-250.0,0.0001,2]
[345025330,1733938231992,-787.16,0.00010044,2]
[345025331,1733938232002,-23900.0,0.00010057,2]
[345025332,1733938232012,-648.17,0.00010137,2]
[345025333,1733938232022,-676.69,0.00010228,2]
[345025334,1733938232032,-582.276,0.0001045,2]
[345025335,1733938232042,-1064.95,0.0001047,2]
[345025336,1733938232051,-150.0,0.00010551,2]
[345025337,1733938232060,-676.69,0.00010593,2]
[345025338,1733938232070,-150.932615,0.00010656,2]
[345025339,1733938232079,-150.0,0.00010666,2]
[345025340,1733938232088,-1964.69446158,0.000107,2]
[345025341,1733938232098,-150.0,0.00010782,2]
[345025342,1733938232107,-200.0,0.00010799,2]
[345025343,1733938232116,-200.0,0.00010799,2]
[345025344,1733938232126,-150.0,0.00010854,2]
[345025345,1733938232136,-420.0,0.00010856,2]
[345025346,1733938232146,-150.0,0.00010865,2]
[345025347,1733938232155,-150.0,0.00010873,2]
[345025348,1733938232165,-150.0,0.00010877,2]
[345025349,1733938232174,-152.83936699,0.000109,2]
[345025350,1733938232183,-150.0,0.00010915,2]
[345025351,1733938232192,-679.694,0.00010927,2]
[345025352,1733938232202,-150.0,0.00010927,2]
[345025353,1733938232211,-634.0,0.00010927,2]
[345025354,1733938232220,-322.19,0.00010927,2]
[345025355,1733938232230,-1939.9,0.00010932,14]
[345025356,1733938232239,-1440.652736,0.00010954,2]
[345025358,1733938232249,-676.69,0.00010958,2]
[345025360,1733938232258,-500.0,0.00010958,2]
[345025362,1733938232268,-500.0,0.00010958,2]
[345025364,1733938232277,-502.58501811,0.00010958,2]
[345025366,1733938232286,-574.33365712,0.00010958,2]
[345025368,1733938232296,-500.0,0.00010958,2]
[345025370,1733938232306,-417.77373224,0.00010958,2]
[345025372,1733938232316,-300.57889565,0.00010958,2]
[345025374,1733938232325,-500.0,0.00010958,2]
[345025376,1733938232335,-616.50419119,0.00010958,2]
[345025378,1733938232344,-500.0,0.00010958,2]
[345025380,1733938232353,-500.0,0.00010958,2]
[345025382,1733938232363,-500.0,0.00010958,2]
[345025383,1733938232372,-500.0,0.00010958,2]
[345025384,1733938232382,-500.0,0.00010958,2]
[345025385,1733938232392,-500.0,0.00010958,2]
[345025386,1733938232401,-500.05100123,0.00010958,2]
[345025388,1733938232411,-150.0,0.00010958,2]
[345025390,1733938232420,-500.0,0.00010958,2]
[345025391,1733938232430,-500.0,0.00010958,2]
[345025392,1733938232439,-500.0,0.00010958,2]
[345025393,1733938232451,-500.0,0.00010958,2]
[345025394,1733938232460,-431.49112392,0.00010958,2]
[345025395,1733938232473,-68.50887608,0.00010958,2]
[345025396,1733938232483,-500.0,0.00010958,2]
[345025397,1733938232492,-500.0,0.00010958,2]
[345025398,1733938232502,-514.35,0.00010958,2]
[345025399,1733938232511,-447.07688301,0.00010958,2]
[345025400,1733938232521,-500.0,0.00010958,2]
[345025401,1733938232531,-500.0,0.00010958,2]
[345025402,1733938232540,-260.62,0.00010958,2]
[345025403,1733938232549,-749.68,0.00010958,2]
[345025404,1733938232560,-500.0,0.00010958,2]
[345025405,1733938232569,-500.0,0.00010958,2]
[345025406,1733938232579,-558.06469887,0.00010958,2]
[345025407,1733938232588,-500.0,0.00010958,2]
[345025408,1733938232599,-521.03,0.00010958,2]
[345025409,1733938232608,-500.0,0.00010958,2]
[345025410,1733938232618,-521.03,0.00010958,2]
[345025411,1733938232627,-500.0,0.00010958,2]
[345025412,1733938232636,-392.57592036,0.00010958,2]
[345025413,1733938232646,-1198.93,0.00010958,2]
[345025414,1733938232655,-1198.93,0.00010958,2]
[345025415,1733938232665,-1355.39,0.00010958,2]
[345025416,1733938232680,-1355.39,0.00010958,2]
[345025417,1733938232690,-500.0,0.00010958,2]
[345025418,1733938232706,-305.9,0.00010958,2]
[345025419,1733938232720,-500.0,0.00010958,2]
[345025420,1733938232730,-489.99060328,0.00010958,2]
[345025421,1733938232739,-500.0,0.00010958,2]
[345025422,1733938232750,-194.71,0.00010958,2]
[345025423,1733938232760,-500.0,0.00010958,2]
[345025424,1733938232769,-169.42931965,0.00010958,2]
[345025425,1733938232779,-500.0,0.00010958,2]
[345025426,1733938232789,-500.0,0.00010958,2]
[345025427,1733938232799,-500.0,0.00010958,2]
[345025428,1733938232808,-500.0,0.00010958,2]
[345025429,1733938232819,-500.0,0.00010958,2]
[345025430,1733938232829,-500.0,0.00010958,2]
[345025431,1733938232839,-500.0,0.00010958,2]
[345025432,1733938232850,-500.0,0.00010958,2]
[345025433,1733938232860,-500.24928784,0.00010958,2]
[345025434,1733938232870,-500.0,0.00010958,2]
[345025435,1733938232879,-500.0,0.00010958,2]
[345025436,1733938232889,-500.0,0.00010958,2]
[345025437,1733938232898,-500.0,0.00010958,2]
[345025438,1733938232908,-500.0,0.00010958,2]
[345025439,1733938232917,-500.0,0.00010958,2]
[345025440,1733938232926,-500.0,0.00010958,2]
[345025441,1733938232936,-500.0,0.00010958,2]
[345025442,1733938232948,-500.0,0.00010958,2]
[345025443,1733938232958,-500.0,0.00010958,2]
[345025444,1733938232967,-500.0,0.00010958,2]
[345025445,1733938232977,-500.0,0.00010958,2]
[345025446,1733938232986,-500.0,0.00010958,2]
[345025447,1733938232996,-500.0,0.00010958,2]
[345025448,1733938233006,-500.0,0.00010958,2]
[345025449,1733938233015,-500.0,0.00010958,2]
[345025450,1733938233026,-500.0,0.00010958,2]
[345025451,1733938233036,-500.0,0.00010958,2]
[345025452,1733938233045,-500.0,0.00010958,2]
[345025453,1733938233055,-500.0,0.00010958,2]
[345025454,1733938233065,-500.0,0.00010958,2]
[345025455,1733938233075,-500.0,0.00010958,2]
[345025456,1733938233085,-500.0,0.00010958,2]
[345025457,1733938233095,-500.0,0.00010958,2]
[345025458,1733938233105,-500.0,0.00010958,2]
[345025459,1733938233115,-500.0,0.00010958,2]
[345025460,1733938233126,-500.0,0.00010958,2]
[345025461,1733938233136,-500.0,0.00010958,2]
[345025462,1733938233146,-500.0,0.00010958,2]
[345025463,1733938233156,-507.75,0.00010958,2]
[345025464,1733938233166,-500.0,0.00010958,2]
[345025465,1733938233176,-500.0,0.00010958,2]
[345025466,1733938233185,-500.0,0.00010958,2]
[345025467,1733938233196,-500.0,0.00010958,2]
[345025468,1733938233206,-229.72348562,0.00010958,2]
[345025469,1733938233216,-500.0,0.00010958,2]
[345025470,1733938233226,-500.0,0.00010958,2]
[345025471,1733938233236,-500.0,0.00010958,2]
[345025472,1733938233247,-500.0,0.00010958,2]
[345025473,1733938233257,-500.0,0.00010958,2]
[345025474,1733938233267,-500.0,0.00010958,2]
[345025475,1733938233277,-500.0,0.00010958,2]
[345025476,1733938233287,-500.0,0.00010958,2]
[345025477,1733938233296,-500.0,0.00010958,2]
[345025478,1733938233307,-500.0,0.00010958,2]
[345025479,1733938233317,-500.0,0.00010958,2]
[345025480,1733938233327,-500.0,0.00010958,2]
[345025481,1733938233337,-500.0,0.00010958,2]
[345025482,1733938233347,-500.0,0.00010958,2]
[345025483,1733938233357,-500.0,0.00010958,2]
[345025484,1733938233367,-500.0,0.00010958,2]
[345025485,1733938233377,-500.0,0.00010958,2]
[345025486,1733938233387,-500.0,0.00010958,2]
[345025487,1733938233398,-500.0,0.00010958,2]
[345025488,1733938233409,-500.0,0.00010958,2]
[345025489,1733938233419,-500.0,0.00010958,2]
[345025490,1733938233430,-500.0,0.00010958,2]
[345025491,1733938233440,-500.0,0.00010958,2]
[345025492,1733938233454,-648.48544938,0.00010958,2]
[345025493,1733938233464,-500.0,0.00010958,2]
[345025494,1733938233474,-500.0,0.00010958,2]
[345025495,1733938233483,-500.0,0.00010958,2]
[345025496,1733938233493,-150.0,0.00010959,2]
[345025497,1733938233504,-2255.149,0.00010959,2]
[345025498,1733938233514,-176.655,0.00010959,2]
[345025499,1733938233524,-150.0,0.00010959,2]
[345025500,1733938233534,-2354.52032986,0.00010969,2]
[345025501,1733938233544,-33389.46010969,0.00010969,2]
[345025502,1733938233554,-2354.52032986,0.00010969,2]
[345025503,1733938233564,-200.0,0.00010969,2]
[345025504,1733938233574,-23152.5105665,0.0001097,2]
[345025505,1733938233587,-1898.50007496,0.0001097,2]
[345025506,1733938233600,-3992.15130089,0.0001097,2]
[345025507,1733938233611,-1975.23713347,0.0001097,2]
[345025508,1733938233628,-2873.97695571,0.0001097,2]
[345025509,1733938233637,-589.68984714,0.0001097,2]
[345025510,1733938233651,-1764.83048272,0.0001097,2]
[345025511,1733938233661,-8313.16951728,0.00010972,2]
[345025512,1733938233683,-5627.9872824,0.00010972,2]
[345025513,1733938233696,-183.9756403,0.00010972,2]
[345025514,1733938233706,-190.5922381,0.00010972,2]
[345025515,1733938233726,-2163.92809176,0.00010972,2]
[345025516,1733938233735,-1603.54109452,0.00010973,2]
[345025517,1733938233746,-430.3060735,0.00010973,2]
[345025518,1733938233756,-2354.52032986,0.00010974,2]
[345025519,1733938233766,-4909.49177489,0.00010974,2]
[345025520,1733938233782,-741.40042407,0.00010974,2]
[345025521,1733938233792,-33892.37603153,0.00010976,2]
[345025522,1733938233802,-1603.54109452,0.00010977,2]
[345025523,1733938233813,-2389.31844984,0.00010978,2]
[345025524,1733938237660,-1971.58,9.956e-05,2]
[345025525,1733938237676,-504.0422,9.956e-05,2]
[345025526,1733938237687,-1098.0,0.00010927,2]
[345025527,1733938237697,-10680.76538099,0.00010978,2]
[345025528,1733938237715,-1771.28400005,0.00010978,2]
[345025529,1733938237726,-1979.662167,0.00010978,2]
[345025530,1733938237738,-2198.98756785,0.00010978,2]
[345025531,1733938237751,-803.95605838,0.00010978,2]
[345025532,1733938237764,-394.999986,0.00010978,2]
[345025533,1733938237775,-5031.36713102,0.00010978,2]
[345025534,1733938237787,-997.3483162,0.00010978,2]
[345025535,1733938237838,-7141.77105236,0.00010978,2]
[345025536,1733938237847,-430.3060735,0.00010978,2]
[345025537,1733938237856,-14125.13243998,0.00010978,2]
[345025538,1733938237866,-33389.46010969,0.00010978,2]
[345025539,1733938237875,-33389.46010969,0.00010979,2]
[345025540,1733938237885,-412.84,0.0001098,2]
[345025541,1733938237895,-33892.37603153,0.0001098,2]
[345025542,1733938237904,-5000.0,0.0001098,2]
[345025543,1733938237914,-5650.89219896,0.0001098,2]
[345025544,1733938237924,-150.0,0.0001098,2]
[345025545,1733938237933,-1377.39602517,0.0001098,2]
[345025546,1733938237943,-1377.39602517,0.00010981,2]
[345025547,1733938237957,-1377.39602517,0.00010981,2]
[345025548,1733938237967,-430.3060735,0.00010982,2]
[345025549,1733938237977,-14125.13243998,0.00010982,2]
[345025550,1733938237986,-430.3060735,0.00010982,2]
[345025551,1733938237996,-33892.37603153,0.00010984,2]
[345025552,1733938238006,-14125.13243998,0.00010986,2]
[345025553,1733938238016,-33389.46010969,0.00010987,2]
[345025554,1733938238025,-5650.89219896,0.0001099,2]
[345025555,1733938238035,-430.3060735,0.00010991,2]
[345025556,1733938238044,-5650.89219896,0.00010991,2]
[345025557,1733938238054,-150.0,0.00010991,2]
[345025558,1733938238063,-2354.52032986,0.00010992,2]
[345025559,1733938238072,-1603.54109452,0.00010992,2]
[345025560,1733938238082,-33892.37603153,0.00010992,2]
[345025561,1733938238092,-33389.46010969,0.00010993,2]
[345025562,1733938238101,-14125.13243998,0.00010994,2]
[345025563,1733938238111,-1603.54109452,0.00010996,2]
[345025564,1733938238120,-14125.13243998,0.00010996,2]
[345025565,1733938238129,-430.3060735,0.00010997,2]
[345025566,1733938238138,-5650.89219896,0.00010998,2]
[345025567,1733938238148,-5650.89219896,0.00010999,2]
[345025568,1733938238158,-33892.37603153,0.00010999,2]
[345025569,1733938238167,-160.78684332,0.00010999,2]
[345025570,1733938238177,-1603.54109452,0.00010999,2]
[345025571,1733938238187,-175.26160334,0.00010999,2]
[345025572,1733938238196,-1603.54109452,0.00010999,2]
[345025573,1733938238209,-200.0,0.00011,2]
[345025574,1733938238218,-200.0,0.00011,2]
[345025575,1733938238228,-85666.36734224,0.00011,2]
[345025576,1733938238238,-1910.72839,0.00011,2]
[345025577,1733938238252,-8269.66827208,0.00011,2]
[345025578,1733938238262,-11361.41444143,0.00011,2]
[345025579,1733938238273,-400.61491368,0.00011,2]
[345025580,1733938238283,-500.0,0.00011011,2]
[345025581,1733938238293,-500.0,0.00011011,2]
[345025582,1733938238303,-500.0,0.00011011,2]
[345025583,1733938238312,-500.0,0.00011011,2]
[345025584,1733938238322,-182.742501,0.00011011,2]
[345025585,1733938238332,-234.718361,0.00011011,2]
[345025586,1733938238342,-500.0,0.00011011,2]
[345025587,1733938238352,-234.20395,0.00011011,2]
[345025588,1733938238362,-500.0,0.00011011,2]
[345025589,1733938238372,-500.0,0.00011011,2]
[345025590,1733938238382,-500.0,0.00011011,2]
[345025591,1733938238392,-500.0,0.00011011,2]
[345025592,1733938238402,-500.0,0.00011011,2]
[345025593,1733938238412,-507.75,0.00011011,2]
[345025594,1733938238422,-500.0,0.00011011,2]
[345025595,1733938238432,-500.0,0.00011011,2]
[345025596,1733938238443,-500.0,0.00011011,2]
[345025597,1733938238455,-500.0,0.00011011,2]